bitfinex/quotes_ETHUSD_20250505
["timestamp","ask_amount","ask_price","bid_price","bid_amount"]
[1746462156953,11.02395817,1814.3,1814.0,3.98313789]
[1746462157264,5.51222094,1814.2,1814.0,3.98313789]
[1746462157456,5.51237528,1814.1,1813.8,3.98313789]
[1746462157647,5.51288415,1814.0,1813.8,3.98313789]
[1746462158067,5.51298307,1813.9,1813.8,3.20293789]
[1746462158272,5.51298307,1813.9,1813.6,10.10813789]
[1746462158681,11.02581636,1814.0,1813.6,15.62188395]
[1746462158869,5.51309474,1813.9,1813.6,10.10813789]
[1746462159184,5.51309474,1813.9,1813.6,15.62202824]
[1746462159551,5.51334292,1813.8,1813.6,10.10813789]
[1746462159788,5.51334292,1813.8,1813.6,3.98313789]
[1746462161188,5.51318733,1813.9,1813.6,3.98313789]
[1746462161584,5.51347504,1813.8,1813.6,3.98313789]
[1746462163496,5.513591,1813.7,1813.6,3.98313789]
[1746462163705,5.51347504,1813.8,1813.6,3.98313789]
[1746462164268,5.51312837,1813.9,1813.6,3.98313789]
[1746462165418,5.51284063,1814.0,1813.8,3.20293789]
[1746462165923,5.51249196,1814.1,1813.8,3.20293789]
[1746462166126,5.51273386,1814.0,1813.8,3.20293789]
[1746462167516,5.51298307,1813.9,1813.8,3.20293789]
[1746462168023,5.51280428,1814.0,1813.8,3.20293789]
[1746462168393,5.51339164,1813.8,1813.6,0.7802]
[1746462168601,5.51345249,1813.8,1813.6,3.98313789]
[1746462169615,5.51318179,1813.9,1813.6,3.98313789]
[1746462169796,5.51284555,1814.0,1813.8,3.20293789]
[1746462170829,11.02576238,1814.0,1813.8,3.20293789]
[1746462171325,5.51284555,1814.0,1813.8,3.20293789]
[1746462171529,11.02575819,1814.0,1813.8,3.20293789]
[1746462172132,5.51298307,1813.9,1813.8,3.20293789]
[1746462172589,1.85848286,1813.9,1813.5,0.7957]
[1746462172789,5.51350724,1813.8,1813.5,3.99863789]
[1746462173007,5.51380255,1813.7,1813.5,3.99863789]
[1746462173226,11.02706216,1813.8,1813.5,3.99863789]
[1746462173699,7.37159954,1813.9,1813.5,9.51278443]
[1746462173900,11.02579218,1814.0,1813.7,3.20293789]
[1746462174101,5.51283931,1814.0,1813.7,8.71649843]
[1746462174339,6.29145848,1814.3,1813.9,8.71572568]
[1746462174487,5.51162313,1814.4,1814.1,3.20293789]
[1746462174830,11.02268956,1814.5,1814.3,3.20293789]
[1746462175139,11.02268956,1814.5,1814.1,6.31196833]
[1746462175140,5.51146384,1814.4,1814.1,9.51490622]
[1746462175931,5.51146384,1814.4,1814.1,4.00263789]
[1746462176604,11.02316646,1814.4,1814.1,4.00263789]
[1746462176817,5.51146384,1814.4,1814.1,4.00263789]
[1746462178235,5.51179771,1814.3,1814.1,4.00263789]
[1746462179296,5.51179662,1814.3,1814.1,4.00263789]
[1746462180638,5.51162821,1814.4,1814.1,4.00263789]
[1746462181023,5.51162821,1814.4,1814.1,9.51495784]
[1746462181320,5.51162821,1814.4,1814.1,11.01770413]
[1746462181521,5.51162821,1814.4,1814.1,5.50538418]
[1746462181722,5.51181803,1814.3,1814.1,5.50538418]
[1746462181925,5.5116629,1814.4,1814.1,5.50538418]
[1746462183726,5.5116629,1814.4,1814.1,1.50274629]
[1746462183727,5.51207143,1814.2,1814.1,1.50274629]
[1746462184063,5.51207143,1814.2,1813.9,14.38031584]
[1746462184366,5.51267916,1814.0,1813.7,0.7669]
[1746462184580,5.5125287,1814.1,1813.9,3.20293789]
[1746462184727,5.51207143,1814.2,1813.9,3.20293789]
[1746462185061,11.02518856,1814.1,1813.9,3.20293789]
[1746462185264,5.51254778,1814.1,1813.9,3.20293789]
[1746462185624,5.51267916,1814.0,1813.9,3.20293789]
[1746462185836,5.51267916,1814.0,1813.7,0.7669]
[1746462186051,5.51305731,1813.9,1813.7,3.96983789]
[1746462186262,5.51250028,1814.1,1813.7,3.96983789]
[1746462186527,0.7835,1814.3,1813.9,3.20293789]
[1746462186528,5.51218633,1814.2,1813.9,3.20293789]
[1746462186758,6.29544011,1814.3,1813.9,3.20293789]
[1746462186759,6.29543713,1814.3,1813.9,3.20293789]
[1746462186940,5.51193713,1814.3,1814.1,3.20293789]
[1746462187567,5.51164498,1814.4,1814.1,3.20293789]
[1746462187872,5.51187344,1814.3,1814.1,3.20293789]
[1746462188267,5.51164498,1814.4,1814.1,3.20293789]
[1746462188674,5.51186964,1814.3,1814.1,3.20293789]
[1746462190035,5.51207143,1814.2,1814.1,3.20293789]
[1746462192602,5.51207143,1814.2,1814.0,3.96613789]
[1746462192753,5.5118044,1814.3,1814.0,3.96613789]
[1746462193287,5.5118044,1814.3,1814.0,9.47875258]
[1746462194107,5.5118044,1814.3,1814.0,3.96613789]
[1746462194388,11.02380562,1814.3,1814.0,3.96613789]
[1746462194576,5.5118044,1814.3,1814.0,3.96613789]
[1746462195278,5.5118044,1814.3,1814.0,9.47879954]
[1746462196301,5.5118044,1814.3,1814.0,5.46529648]
[1746462196493,5.5118044,1814.3,1814.0,10.97789349]
[1746462196891,5.5118044,1814.3,1814.0,5.46529648]
[1746462197192,5.51212214,1814.2,1814.0,3.96613789]
[1746462197491,5.51212214,1814.2,1813.8,11.63809784]
[1746462197492,5.51298307,1813.9,1813.8,6.125]
[1746462197661,5.5126957,1814.0,1813.8,6.125]
[1746462198194,5.51298307,1813.9,1813.8,6.125]
[1746462198395,5.5126957,1814.0,1813.8,6.125]
[1746462198894,5.5126957,1814.0,1813.7,7.71977876]
[1746462199189,5.5126957,1814.0,1813.7,10.19055424]
[1746462199386,5.5126957,1814.0,1813.7,15.64889981]
[1746462199590,5.51328702,1813.8,1813.7,7.71977876]
[1746462199910,5.51283467,1814.0,1813.7,3.99443789]
[1746462200591,5.51283467,1814.0,1813.7,9.50799286]
[1746462200791,5.51283467,1814.0,1813.7,3.99443789]
[1746462200993,5.51283467,1814.0,1813.7,9.50802329]
[1746462202082,11.02575871,1814.0,1813.7,3.99443789]
[1746462202307,5.51283467,1814.0,1813.7,3.99443789]
[1746462202472,11.02576097,1814.0,1813.7,3.99443789]
[1746462202676,5.51299175,1813.9,1813.7,3.99443789]
[1746462203909,5.51328702,1813.8,1813.7,3.20293789]
[1746462204075,5.51328702,1813.8,1813.6,8.00093789]
[1746462207214,5.513591,1813.7,1813.6,4.798]
[1746462207378,5.513591,1813.7,1813.5,0.7767]
[1746462207980,5.51347711,1813.8,1813.6,3.20293789]
[1746462208715,5.513591,1813.7,1813.6,3.20293789]
[1746462209718,5.51347711,1813.8,1813.6,3.20293789]
[1746462211619,5.51329984,1813.8,1813.6,3.20293789]
[1746462211795,5.51329301,1813.8,1813.6,3.20293789]
[1746462213428,5.51312523,1813.9,1813.6,8.71682812]
[1746462213721,5.51286416,1814.0,1813.8,3.98993789]
[1746462214219,5.51227312,1814.2,1813.8,9.50311898]
[1746462214515,5.51237528,1814.1,1814.0,3.20293789]
[1746462214887,5.51227312,1814.2,1814.0,3.20293789]
[1746462215081,5.51237528,1814.1,1814.0,3.20293789]
[1746462216016,5.51237528,1814.1,1813.8,3.98993789]
[1746462216319,5.51291865,1814.0,1813.8,3.98993789]
[1746462216818,5.51291865,1814.0,1813.8,3.20293789]
[1746462217183,5.51291865,1814.0,1813.7,10.924]
[1746462217385,5.51291865,1814.0,1813.7,14.12693789]
[1746462217386,5.51323067,1813.9,1813.7,14.12693789]
[1746462217627,5.51280222,1814.0,1813.7,14.12693789]
[1746462219856,5.51280222,1814.0,1813.7,8.00193789]
[1746462220028,11.02574309,1814.0,1813.7,8.00193789]
[1746462220229,5.51298504,1813.9,1813.7,8.00193789]
[1746462224563,5.51328702,1813.8,1813.7,4.799]
[1746462224870,5.51287129,1814.0,1813.7,5.96964]
[1746462225019,5.51287129,1814.0,1813.8,3.20293789]
[1746462225730,5.5125395,1814.1,1813.8,3.20293789]
[1746462226247,5.5125395,1814.1,1813.8,8.71622224]
[1746462226448,5.51226337,1814.2,1813.9,0.7885]
[1746462226639,5.51250766,1814.1,1813.9,0.7885]
[1746462228365,11.02517737,1814.1,1813.9,0.7885]
[1746462228657,5.51250766,1814.1,1813.9,0.7885]
[1746462228862,11.02513852,1814.1,1813.9,0.7885]
[1746462229168,5.51267916,1814.0,1813.9,0.7885]
[1746462229862,5.51267916,1814.0,1813.8,3.20293789]
[1746462230680,5.51249852,1814.1,1813.8,3.20293789]
[1746462230871,5.51249852,1814.1,1813.8,10.20480073]
[1746462231556,5.51249852,1814.1,1813.8,10.14967373]
[1746462231962,5.51249852,1814.1,1813.8,4.63642475]
[1746462232268,5.51278635,1814.0,1813.8,3.20293789]
[1746462234783,5.51249852,1814.1,1813.8,8.71617767]
[1746462235149,11.02457048,1814.2,1813.8,8.71617767]
[1746462235477,5.51243262,1814.1,1813.8,3.20293789]
[1746462236395,5.51278144,1814.0,1813.8,3.20293789]
[1746462236688,5.51243262,1814.1,1813.8,3.20293789]
[1746462236887,5.51328702,1813.8,1813.7,11.7435]
[1746462237046,5.51314095,1813.9,1813.6,9.32793789]
[1746462237249,5.51328702,1813.8,1813.6,9.32793789]
[1746462237449,5.51314095,1813.9,1813.6,9.32793789]
[1746462239508,11.02636293,1813.9,1813.6,9.32793789]
[1746462239708,5.51314095,1813.9,1813.6,9.32793789]
[1746462241008,5.5134836,1813.8,1813.6,3.20293789]
[1746462241610,5.51299111,1813.9,1813.6,3.20293789]
[1746462241915,11.02626327,1813.9,1813.6,3.20293789]
[1746462242215,5.51299111,1813.9,1813.6,3.20293789]
[1746462243215,11.02620795,1813.9,1813.6,3.20293789]
[1746462243420,5.51299111,1813.9,1813.6,3.20293789]
[1746462243812,5.51299111,1813.9,1813.6,8.71680216]
[1746462243999,5.51298307,1813.9,1813.6,5.39171257]
[1746462244204,5.51342157,1813.8,1813.6,0.7572]
[1746462244807,5.51298307,1813.9,1813.6,0.7572]
[1746462245012,5.51341249,1813.8,1813.6,0.7572]
[1746462246207,5.51341249,1813.8,1813.5,8.79753789]
[1746462246408,5.51341249,1813.8,1813.5,12.52287876]
[1746462247408,5.51363165,1813.7,1813.5,12.52287876]
[1746462247601,5.51341249,1813.8,1813.5,12.52287876]
[1746462248018,5.51341249,1813.8,1813.5,18.03706462]
[1746462248315,5.51341249,1813.8,1813.5,12.52287876]
[1746462249219,5.51341249,1813.8,1813.5,18.03705018]
[1746462250219,5.51341249,1813.8,1813.5,14.31170931]
[1746462250408,11.02576286,1814.0,1813.7,3.20293789]
[1746462251190,5.51305178,1813.9,1813.7,3.20293789]
[1746462252806,5.51285747,1814.0,1813.7,8.71651006]
[1746462253323,5.51250557,1814.1,1813.9,3.20293789]
[1746462253502,5.5122387,1814.2,1813.9,3.20293789]
[1746462253703,5.51246654,1814.1,1813.9,3.20293789]
[1746462253999,6.13896257,1814.2,1813.9,3.20293789]
[1746462254206,11.65128395,1814.2,1813.9,3.20293789]
[1746462254721,0.755,1814.3,1814.1,3.20293789]
[1746462255027,6.27644802,1814.5,1814.2,0.8187]
[1746462255213,5.51153378,1814.4,1814.2,0.8187]
[1746462255827,5.51124802,1814.5,1814.2,0.8187]
[1746462256026,5.51102626,1814.6,1814.3,3.20293789]
[1746462256027,5.51087124,1814.6,1814.3,3.20293789]
[1746462256323,5.51071917,1814.7,1814.5,3.20293789]
[1746462256527,6.61283046,1814.7,1814.5,3.20293789]
[1746462257030,6.61283046,1814.7,1814.5,4.02163789]
[1746462257031,12.12366951,1814.7,1814.5,4.02163789]
[1746462257630,5.51085638,1814.6,1814.5,3.20293789]
[1746462257818,5.51085638,1814.6,1814.3,4.02163789]
[1746462261401,11.02200031,1814.6,1814.3,4.02163789]
[1746462261601,5.51085638,1814.6,1814.3,9.53340044]
[1746462261801,5.51085638,1814.6,1814.3,4.02163789]
[1746462262328,5.51085638,1814.6,1814.3,0.8187]
[1746462262329,7.40245748,1814.6,1814.3,0.8187]
[1746462262526,5.51099995,1814.6,1814.4,3.20293789]
[1746462262746,5.51037255,1814.8,1814.4,8.71421058]
[1746462262924,5.51037255,1814.8,1814.6,3.20293789]
[1746462263128,5.51037255,1814.8,1814.7,0.7673]
[1746462263431,5.51037255,1814.8,1814.6,4.00893789]
[1746462264524,5.50977713,1815.0,1814.6,10.47161172]
[1746462264702,5.50977713,1815.0,1814.8,3.20293789]
[1746462267347,11.01966211,1815.0,1814.8,3.20293789]
[1746462267503,11.01964785,1815.0,1814.8,3.20293789]
[1746462267730,11.01967545,1815.0,1814.8,3.20293789]
[1746462267934,5.50977713,1815.0,1814.8,3.20293789]
[1746462268268,5.50994545,1814.9,1814.8,3.20293789]
[1746462268752,5.50968205,1815.0,1814.8,3.20293789]
[1746462269565,5.50994545,1814.9,1814.8,3.20293789]
[1746462275863,5.50966652,1815.0,1814.9,0.7541]
[1746462276371,5.50903481,1815.2,1814.9,1.14980379]
[1746462276569,5.50903481,1815.2,1815.0,3.20293789]
[1746462276739,5.50905031,1815.2,1815.0,3.20293789]
[1746462277163,5.50933832,1815.1,1815.0,3.20293789]
[1746462277569,5.50922228,1815.2,1815.0,3.20293789]
[1746462277768,5.50922228,1815.2,1815.0,3.63821206]
[1746462277971,5.50933832,1815.1,1815.0,3.63821206]
[1746462278164,5.50931268,1815.2,1815.0,3.63821206]
[1746462278873,5.50933832,1815.1,1815.0,3.63821206]
[1746462280077,11.01862027,1815.2,1815.0,3.63821206]
[1746462280244,5.50930759,1815.2,1815.1,0.36382121]
[1746462281744,5.50933832,1815.1,1815.0,3.20293789]
[1746462282144,5.50933832,1815.1,1814.9,1.14980379]
[1746462283346,5.50936463,1815.1,1814.9,1.14980379]
[1746462285888,11.01897529,1815.1,1814.9,1.14980379]
[1746462286091,5.50964187,1815.0,1814.9,1.14980379]
[1746462286263,5.50964187,1815.0,1814.8,9.32793789]
[1746462286264,5.50994545,1814.9,1814.8,6.125]
[1746462291781,6.26374545,1814.9,1814.8,6.125]
[1746462291960,5.51116009,1814.5,1814.4,4.763]
[1746462294665,5.51116009,1814.5,1814.3,0.7806]
[1746462294871,5.51098941,1814.6,1814.4,3.20293789]
[1746462298706,5.51041244,1814.8,1814.4,3.20293789]
[1746462298919,0.8092,1814.9,1814.6,3.20293789]
[1746462299075,5.51052503,1814.8,1814.6,3.20293789]
[1746462299675,11.8295302,1814.9,1814.6,3.20293789]
[1746462299871,7.50226987,1814.9,1814.6,3.20293789]
[1746462300210,5.51038558,1814.8,1814.6,3.20293789]
[1746462300395,7.50226987,1814.9,1814.6,3.20293789]
[1746462301210,12.20325009,1814.9,1814.6,3.20293789]
[1746462301377,11.01909987,1815.1,1814.7,5.51047402]
[1746462301576,11.01909987,1815.1,1814.7,6.28907402]
[1746462301577,5.50964817,1815.0,1814.7,6.28907402]
[1746462301800,5.5095136,1815.1,1814.8,3.20293789]
[1746462302004,9.28980325,1815.2,1814.8,8.71308725]
[1746462302005,6.28980325,1815.2,1814.8,8.71308725]
[1746462302182,7.46967257,1815.2,1814.8,8.71303194]
[1746462302377,5.50905861,1815.2,1814.9,5.50992667]
[1746462302673,5.50856358,1815.4,1815.0,9.49166134]
[1746462303078,11.01725529,1815.4,1815.0,9.49166134]
[1746462303974,5.50877325,1815.3,1815.0,9.49166134]
[1746462305327,5.50877325,1815.3,1815.0,3.98203789]
[1746462305539,5.50968561,1815.0,1814.8,11.6514]
[1746462305743,5.50968561,1815.0,1814.8,5.5264]
[1746462306099,5.50958201,1815.1,1814.8,5.5264]
[1746462306720,5.50957022,1815.1,1814.8,5.5264]
[1746462307036,0.8092,1815.2,1814.8,4.764]
[1746462307037,5.50969826,1815.0,1814.8,4.764]
[1746462307214,5.50994545,1814.9,1814.8,4.764]
[1746462309417,5.50994545,1814.9,1814.6,3.95763789]
[1746462309618,5.50994545,1814.9,1814.6,9.46844659]
[1746462310045,5.50994545,1814.9,1814.6,3.95763789]
[1746462310658,5.50994545,1814.9,1814.6,9.46848974]
[1746462310839,5.50994545,1814.9,1814.6,3.95763789]
[1746462311022,5.50994545,1814.9,1814.6,9.46839711]
[1746462312650,5.50994545,1814.9,1814.6,9.52349947]
[1746462313167,5.50994545,1814.9,1814.6,4.01274025]
[1746462313372,5.5103791,1814.8,1814.4,6.125]
[1746462313577,5.51067111,1814.7,1814.4,0.7504]
[1746462313927,5.51116009,1814.5,1814.3,14.83733789]
[1746462314151,5.51116009,1814.5,1814.3,8.71233789]
[1746462314333,5.51087407,1814.6,1814.3,8.71233789]
[1746462314759,5.51087407,1814.6,1814.3,14.2239804]
[1746462314976,5.51073125,1814.7,1814.3,14.2239804]
[1746462315779,5.51040128,1814.8,1814.5,3.20293789]
[1746462315986,6.31900719,1815.0,1814.7,3.20293789]
[1746462316271,5.51012227,1814.9,1814.7,3.20293789]
[1746462316834,5.51012227,1814.9,1814.5,6.34172615]
[1746462316835,5.51024906,1814.8,1814.5,9.54466404]
[1746462317678,5.51013167,1814.9,1814.5,9.54466404]
[1746462318051,5.51013167,1814.9,1814.6,5.51072512]
[1746462318378,5.50950874,1815.1,1814.8,0.771]
[1746462318681,5.50917228,1815.2,1814.9,3.20293789]
[1746462318844,11.01849175,1815.2,1814.9,3.20293789]
[1746462319291,5.50994545,1814.9,1814.6,6.125]
[1746462319453,5.50994545,1814.9,1814.6,6.896]
[1746462320270,5.50978303,1815.0,1814.7,3.98893789]
[1746462320473,5.50951802,1815.1,1814.7,9.49931095]
[1746462320779,11.01914134,1815.1,1814.7,9.49931095]
[1746462321277,5.50964415,1815.0,1814.7,9.49931095]
[1746462321482,5.50964415,1815.0,1814.7,11.61281494]
[1746462322480,5.50964415,1815.0,1814.7,6.10244188]
[1746462323862,5.50967565,1815.0,1814.7,11.61295785]
[1746462324058,5.50923547,1815.2,1814.8,5.51009699]
[1746462324266,5.50923547,1815.2,1814.9,3.20293789]
[1746462325392,5.50923547,1815.2,1814.9,8.71282771]
[1746462327281,5.50923547,1815.2,1814.9,3.20293789]
[1746462328372,11.01855359,1815.2,1814.9,3.20293789]
[1746462329377,5.50923547,1815.2,1814.9,3.20293789]
[1746462330083,11.01851166,1815.2,1814.9,3.20293789]
[1746462330575,5.50873133,1815.3,1814.8,0.05509534]
[1746462330782,5.50988825,1815.0,1814.7,11.67]
[1746462330951,5.50988825,1815.0,1814.7,5.545]
[1746462331595,5.50950878,1815.1,1814.7,14.25845862]
[1746462331787,5.50950878,1815.1,1814.7,19.76878778]
[1746462332177,5.50950878,1815.1,1814.7,14.25826705]
[1746462332371,12.12099312,1815.1,1814.7,14.25826705]
[1746462332578,6.61137919,1815.1,1814.7,14.25826705]
[1746462332994,5.50964542,1815.0,1814.7,14.25826705]
[1746462333788,6.61137919,1815.1,1814.7,14.25826705]
[1746462334290,5.50975004,1815.0,1814.7,14.25826705]
[1746462335391,5.50975004,1815.0,1814.7,8.74793789]
[1746462335596,6.72203001,1815.0,1814.7,3.98893789]
[1746462335781,5.51004983,1814.9,1814.7,3.98893789]
[1746462336269,5.5105527,1814.7,1814.4,3.72534087]
[1746462336460,5.51116009,1814.5,1814.4,3.72534087]
[1746462336862,5.51098724,1814.6,1814.4,3.72534087]
[1746462337063,5.51070504,1814.7,1814.4,7.69517876]
[1746462337264,5.51040035,1814.8,1814.4,14.52727553]
[1746462337702,11.02094601,1814.8,1814.4,14.52727553]
[1746462338111,5.51055424,1814.7,1814.4,9.01586032]
[1746462338309,5.51116009,1814.5,1814.4,4.49224087]
[1746462338519,5.51116009,1814.5,1814.4,3.72534087]
[1746462339176,5.51106959,1814.6,1814.4,3.72534087]
[1746462339710,11.02217586,1814.6,1814.4,3.72534087]
[1746462339914,5.51116009,1814.5,1814.4,3.72534087]
[1746462340212,5.51106676,1814.6,1814.2,15.60688901]
[1746462340917,5.51118974,1814.5,1814.2,15.60688901]
[1746462341094,0.7543,1814.7,1814.2,10.09483789]
[1746462341095,5.51147628,1814.4,1814.2,10.09483789]
[1746462341817,5.51121805,1814.5,1814.2,10.14995256]
[1746462342113,5.51121805,1814.5,1814.2,15.66201453]
[1746462342314,5.51121805,1814.5,1814.2,15.60689986]
[1746462342493,5.51099001,1814.6,1814.2,24.08464787]
[1746462342692,5.51099001,1814.6,1814.2,18.5725859]
[1746462343341,5.51099001,1814.6,1814.2,24.0844434]
[1746462343644,5.51099001,1814.6,1814.2,18.57256718]
[1746462343840,11.02144561,1814.7,1814.3,5.56672363]
[1746462344007,5.51064583,1814.7,1814.4,3.20293789]
[1746462344208,11.02146619,1814.7,1814.4,3.20293789]
[1746462344514,6.69371245,1814.7,1814.4,3.20293789]
[1746462344721,5.51064583,1814.7,1814.5,0.7837]
[1746462346049,5.51085638,1814.6,1814.5,0.7837]
[1746462346339,5.51085638,1814.6,1814.4,3.20293789]
[1746462346545,5.51085638,1814.6,1814.3,12.43826336]
[1746462346721,5.51146384,1814.4,1814.3,6.125]
[1746462347910,6.30256384,1814.4,1814.3,6.125]
[1746462348712,5.51146384,1814.4,1814.3,6.125]
[1746462348955,5.51146384,1814.4,1814.1,10.27136028]
[1746462352268,5.51179077,1814.3,1814.1,4.759]
[1746462352813,5.51207143,1814.2,1814.1,4.759]
[1746462353368,5.51259653,1814.1,1813.8,8.72063789]
[1746462354007,5.51259653,1814.1,1813.8,14.23381253]
[1746462354290,5.51259653,1814.1,1813.8,5.5177]
[1746462354583,6.31303986,1814.2,1813.8,14.23379923]
[1746462354783,6.31303986,1814.2,1813.8,19.74688247]
[1746462355084,5.51191368,1814.3,1814.0,3.20293789]
[1746462355565,5.51220398,1814.2,1814.0,3.20293789]
[1746462355753,5.51157945,1814.4,1814.0,8.71538887]
[1746462356056,5.51157945,1814.4,1814.2,3.20293789]
[1746462356848,5.51176762,1814.3,1814.2,3.20293789]
[1746462357258,5.51176762,1814.3,1814.1,0.8102]
[1746462358379,5.51176762,1814.3,1814.0,6.125]
[1746462359273,11.02375843,1814.3,1814.0,6.125]
[1746462359458,5.51212771,1814.2,1814.0,6.125]
[1746462360167,5.51176762,1814.3,1814.0,6.125]
[1746462360542,5.51176762,1814.3,1814.0,11.63765698]
[1746462360870,5.51176762,1814.3,1814.0,5.51265698]
[1746462361771,11.81280402,1814.4,1814.0,5.51265698]
[1746462361975,5.51165055,1814.4,1814.2,0.7601]
[1746462362342,11.02336468,1814.4,1814.2,0.7601]
[1746462362542,5.51165055,1814.4,1814.2,0.7601]
[1746462363180,5.51134769,1814.5,1814.2,0.7601]
[1746462363684,5.51149323,1814.4,1814.2,0.7601]
[1746462364479,5.51149323,1814.4,1814.1,8.71511096]
[1746462364661,5.51149323,1814.4,1814.1,3.20293789]
[1746462365277,11.02319358,1814.4,1814.1,3.20293789]
[1746462365484,5.51179558,1814.3,1814.1,3.20293789]
[1746462365657,5.51213655,1814.2,1814.0,6.125]
[1746462366879,5.51213655,1814.2,1813.9,3.20293789]
[1746462367375,5.51213655,1814.2,1813.9,8.71591396]
[1746462368296,6.3154141,1814.3,1813.9,16.86978333]
[1746462368611,5.51164225,1814.4,1814.1,4.00093789]
[1746462368778,11.02273936,1814.5,1814.1,9.51310793]
[1746462368966,5.51157104,1814.4,1814.1,4.00093789]
[1746462370405,5.51157104,1814.4,1814.1,9.5682898]
[1746462370616,5.51131975,1814.5,1814.1,11.19408737]
[1746462370772,6.29406704,1814.8,1814.4,5.51136942]
[1746462370968,6.29406704,1814.8,1814.5,4.01653789]
[1746462371183,5.51036704,1814.8,1814.5,4.01653789]
[1746462372202,5.51036704,1814.8,1814.5,3.20293789]
[1746462372203,5.51071866,1814.7,1814.5,3.20293789]
[1746462372404,11.02156581,1814.7,1814.5,3.20293789]
[1746462372607,5.5113086,1814.5,1814.3,3.20293789]
[1746462374233,6.32020731,1814.6,1814.3,3.20293789]
[1746462375124,5.51133505,1814.5,1814.3,3.20293789]
[1746462375295,5.51146384,1814.4,1814.2,6.125]
[1746462375499,5.51180067,1814.3,1814.1,3.96793789]
[1746462375697,11.02380637,1814.3,1814.0,14.60034087]
[1746462375901,5.5116136,1814.4,1814.0,10.875]
[1746462376200,6.26492963,1814.5,1814.1,8.77022605]
[1746462376415,6.26492963,1814.5,1814.1,8.71510382]
[1746462377118,11.77631898,1814.5,1814.1,8.71510382]
[1746462377333,6.26492963,1814.5,1814.1,8.71510382]
[1746462377539,5.51147005,1814.4,1814.1,8.71510382]
[1746462378438,5.51147005,1814.4,1814.1,3.20293789]
[1746462379114,6.26492101,1814.5,1814.1,3.20293789]
[1746462379411,6.26492101,1814.5,1814.1,8.71513598]
[1746462379640,6.26492101,1814.5,1814.0,4.75]
[1746462379641,5.51211277,1814.2,1814.0,4.75]
[1746462380143,5.51237528,1814.1,1814.0,4.75]
[1746462380349,5.51211277,1814.2,1814.0,4.75]
[1746462381823,11.02446813,1814.2,1814.0,4.75]
[1746462382156,5.51211277,1814.2,1814.0,4.75]
[1746462383962,5.51211277,1814.2,1813.9,8.71591562]
[1746462384962,5.5118908,1814.3,1813.9,10.83235362]
[1746462385139,5.5118908,1814.3,1814.0,5.51264417]
[1746462385339,5.51250096,1814.1,1813.8,10.13833789]
[1746462385535,5.51185515,1814.3,1813.9,5.51285946]
[1746462385744,5.51185515,1814.3,1814.0,3.20293789]
[1746462385957,5.51219446,1814.2,1814.0,3.20293789]
[1746462387463,5.51185515,1814.3,1814.0,4.07452879]
[1746462387765,5.51098011,1814.6,1814.2,8.71476101]
[1746462387959,5.51085638,1814.6,1814.4,3.20293789]
[1746462388748,5.5107213,1814.7,1814.4,4.00913789]
[1746462388941,5.51088915,1814.6,1814.4,4.00913789]
[1746462389327,1.10216105,1814.6,1814.0,0.8715909]
[1746462389671,5.51278836,1814.0,1813.8,4.01193789]
[1746462389965,5.51253194,1814.1,1813.8,4.01193789]
[1746462390371,5.51211046,1814.2,1813.8,9.52520652]
[1746462390553,5.51211046,1814.2,1814.0,3.20293789]
[1746462390859,11.02441679,1814.2,1814.0,3.20293789]
[1746462391075,5.51237528,1814.1,1814.0,3.20293789]
[1746462392574,5.51237528,1814.1,1813.8,4.01193789]
[1746462394980,5.51224238,1814.2,1813.8,5.57697096]
[1746462395291,0.7548,1814.4,1813.8,11.14525296]
[1746462395574,5.51227702,1814.2,1813.8,11.09012659]
[1746462395878,11.02461481,1814.2,1813.8,11.09012659]
[1746462396372,5.51227702,1814.2,1813.8,11.09012659]
[1746462396678,5.5124021,1814.1,1813.8,11.09012659]
[1746462397061,5.51227702,1814.2,1813.8,11.09012659]
[1746462397267,11.02459606,1814.2,1813.8,11.09012659]
[1746462398280,5.51238389,1814.1,1813.8,11.09012659]
[1746462399880,5.51238389,1814.1,1813.8,4.01193789]
[1746462401270,5.51269301,1814.0,1813.8,4.01193789]
[1746462401585,11.02501244,1814.1,1813.8,4.01193789]
[1746462401948,5.51238389,1814.1,1813.8,4.01193789]
[1746462402149,11.02498315,1814.1,1813.8,4.01193789]
[1746462402496,5.51238389,1814.1,1813.8,4.01193789]
[1746462402659,5.51238389,1814.1,1813.8,9.5252101]
[1746462403041,5.51218137,1814.2,1813.8,9.52507709]
[1746462403280,11.02450402,1814.2,1813.8,9.52506726]
[1746462403475,5.51218137,1814.2,1813.8,11.62024706]
[1746462403681,5.51218137,1814.2,1813.8,17.07819349]
[1746462403841,5.51218137,1814.2,1814.0,3.20293789]
[1746462404482,5.51237528,1814.1,1814.0,3.20293789]
[1746462404791,5.51218137,1814.2,1814.0,3.20293789]
[1746462405859,5.51190109,1814.3,1814.1,0.795]
[1746462406458,5.51256361,1814.1,1813.9,4.02223789]
[1746462406660,5.51256361,1814.1,1813.9,3.20293789]
[1746462409793,5.51223778,1814.2,1813.9,3.20293789]
[1746462410152,5.51223778,1814.2,1813.9,8.71586815]
[1746462410357,5.51192528,1814.3,1814.1,3.20293789]
[1746462411191,6.26641369,1814.4,1814.1,3.20293789]
[1746462411192,5.51161369,1814.4,1814.1,3.20293789]
[1746462411366,5.51161369,1814.4,1814.1,8.71521582]
[1746462412174,5.51161369,1814.4,1814.1,3.20293789]
[1746462412482,5.51180916,1814.3,1814.1,3.20293789]
[1746462416690,5.51155914,1814.4,1814.1,3.20293789]
[1746462416892,11.02326255,1814.4,1814.1,3.20293789]
[1746462417092,5.51155914,1814.4,1814.1,3.20293789]
[1746462418258,5.51155914,1814.4,1814.1,8.71527267]
[1746462418461,5.51178318,1814.3,1814.1,3.20293789]
[1746462418804,6.30078671,1814.6,1814.1,3.20293789]
[1746462418805,5.5115969,1814.4,1814.1,3.20293789]
[1746462419960,11.02336294,1814.4,1814.1,3.20293789]
[1746462420296,5.5115969,1814.4,1814.1,3.20293789]
[1746462420491,5.51187533,1814.3,1814.1,3.20293789]
[1746462421057,5.5115969,1814.4,1814.1,3.20293789]
[1746462421270,5.5115969,1814.4,1814.1,8.71522268]
[1746462421697,5.51133927,1814.5,1814.2,0.8207]
[1746462421854,5.51133927,1814.5,1814.2,6.33268701]
[1746462422372,5.51126799,1814.5,1814.2,0.8207]
[1746462423080,5.51126799,1814.5,1814.2,6.33270106]
[1746462423581,5.51126799,1814.5,1814.2,0.8207]
[1746462425294,5.51126799,1814.5,1814.2,6.33273068]
[1746462426195,5.51071444,1814.7,1814.4,0.7864]
[1746462426895,11.020263,1814.9,1814.6,0.7864]
[1746462427091,5.82029275,1814.8,1814.6,0.7864]
[1746462427470,0.31003502,1814.8,1814.7,3.20293789]
[1746462427673,5.51006125,1814.9,1814.7,3.20293789]
[1746462427877,5.50985878,1815.0,1814.7,8.71348282]
[1746462428062,5.50951849,1815.1,1814.7,8.71348282]
[1746462428262,11.01908559,1815.1,1814.7,8.71348282]
[1746462428477,0.30988616,1815.0,1814.7,8.76858359]
[1746462428677,0.30988616,1815.0,1814.9,4.02103789]